bitfinex/quotes_SOLUSD_20251119
["timestamp","ask_amount","ask_price","bid_price","bid_amount"]
[1763567427891,0.2,135.28,135.27,6.34883507]
[1763567428189,0.2,135.28,135.25,6.34883507]
[1763567428406,0.88,135.28,135.25,6.34883507]
[1763567428995,0.2,135.28,135.25,6.34883507]
[1763567429198,0.88,135.28,135.25,6.34883507]
[1763567429371,0.2,135.28,135.26,6.34883507]
[1763567429570,0.2,135.28,135.25,6.34883507]
[1763567429901,0.68,135.27,135.2,18.12096]
[1763567430066,0.68,135.27,135.24,6.34883507]
[1763567430265,0.2,135.28,135.24,6.34883507]
[1763567430471,0.88,135.28,135.22,1.8]
[1763567430665,0.88,135.28,135.24,6.34883507]
[1763567430890,6.34883507,135.26,135.21,6.34883507]
[1763567431096,6.34883507,135.27,135.22,6.34883507]
[1763567431285,0.68,135.27,135.24,6.34883507]
[1763567431811,0.68,135.27,135.22,0.67]
[1763567431966,0.68,135.27,135.23,6.34883507]
[1763567432898,0.2,135.28,135.26,6.34883507]
[1763567433081,0.88,135.28,135.23,18.12096]
[1763567433284,0.68,135.27,135.24,6.34883507]
[1763567433496,0.88,135.28,135.24,6.34883507]
[1763567434000,0.68,135.27,135.24,6.34883507]
[1763567434307,0.68,135.27,135.23,6.34883507]
[1763567434983,0.68,135.27,135.22,0.67]
[1763567435387,0.68,135.27,135.24,6.34883507]
[1763567435701,0.68,135.27,135.23,6.34883507]
[1763567436474,0.2,135.28,135.25,6.34883507]
[1763567436679,7.02883507,135.27,135.19,18.79096]
[1763567436914,0.68,135.27,135.22,6.34883507]
[1763567437120,0.68,135.26,135.21,6.34883507]
[1763567437313,16.13766276,135.23,135.15,0.67]
[1763567437616,6.34883507,135.22,135.17,6.34883507]
[1763567437825,0.68,135.21,135.15,0.67]
[1763567438111,7.02883507,135.21,135.13,0.67]
[1763567438313,7.02883507,135.21,135.13,18.79096]
[1763567438314,6.34883507,135.2,135.13,18.79096]
[1763567438476,6.34883507,135.2,135.14,6.34883507]
[1763567438477,6.34883507,135.19,135.14,6.34883507]
[1763567438675,7.02883507,135.19,135.14,6.34883507]
[1763567438900,0.68,135.18,135.14,6.34883507]
[1763567439280,0.68,135.18,135.13,0.67]
[1763567439484,0.68,135.18,135.15,6.34883507]
[1763567439677,0.68,135.21,135.13,0.67]
[1763567439877,0.68,135.21,135.17,6.34883507]
[1763567440303,0.68,135.21,135.16,6.34883507]
[1763567440490,0.68,135.21,135.17,6.34883507]
[1763567441110,0.68,135.21,135.16,6.34883507]
[1763567441297,16.13766276,135.2,135.14,6.34883507]
[1763567441502,13.74603632,135.19,135.14,6.34883507]
[1763567441695,7.02883507,135.19,135.14,6.34883507]
[1763567442015,0.68,135.18,135.14,6.34883507]
[1763567442501,17.93766276,135.22,135.16,6.34883507]
[1763567442691,0.68,135.2,135.16,6.34883507]
[1763567443016,12.26882769,135.22,135.18,6.34883507]
[1763567443211,12.26882769,135.22,135.16,0.67]
[1763567443212,0.68,135.22,135.19,6.34883507]
[1763567443627,0.68,135.22,135.17,0.67]
[1763567443789,0.68,135.22,135.19,6.34883507]
[1763567443987,0.68,135.22,135.13,18.12096]
[1763567444192,6.34883507,135.21,135.16,6.34883507]
[1763567444419,9.78882769,135.21,135.16,6.34883507]
[1763567444723,0.68,135.2,135.16,6.34883507]
[1763567445015,0.68,135.2,135.14,0.67]
[1763567445314,0.68,135.2,135.17,6.34883507]
[1763567445497,0.68,135.2,135.15,6.34883507]
[1763567445822,0.68,135.2,135.16,6.34883507]
[1763567447520,0.68,135.2,135.13,18.12096]
[1763567447521,19.66550809,135.2,135.13,18.12096]
[1763567447815,7.02883507,135.19,135.14,6.34883507]
[1763567448030,0.68,135.18,135.15,6.34883507]
[1763567448701,0.68,135.18,135.14,6.34883507]
[1763567449905,0.68,135.18,135.14,7.02883507]
[1763567450113,0.68,135.18,135.14,6.34883507]
[1763567451118,0.68,135.18,135.15,6.34883507]
[1763567451325,7.05883507,135.2,135.15,6.34883507]
[1763567451625,17.93766276,135.21,135.16,7.02883507]
[1763567451913,0.71,135.2,135.16,6.34883507]
[1763567453221,1.8,135.21,135.18,6.34883507]
[1763567453429,0.71,135.2,135.17,6.34883507]
[1763567453599,7.05883507,135.22,135.17,7.02883507]
[1763567453916,7.05883507,135.24,135.19,6.34883507]
[1763567454120,5.95391077,135.23,135.13,18.12096]
[1763567454430,5.95391077,135.23,135.1,3.79999999]
[1763567454431,9.78882769,135.18,135.08,0.1]
[1763567454594,9.78882769,135.14,135.08,0.1]
[1763567454786,1.8,135.14,135.08,0.78]
[1763567454994,2.51,135.14,135.08,0.78]
[1763567455222,5.94854121,135.13,135.08,0.1]
[1763567455427,6.34883507,135.12,135.08,0.1]
[1763567455613,16.84766276,135.12,135.08,0.1]
[1763567455804,0.71,135.11,135.08,0.1]
[1763567456002,7.05883507,135.11,135.08,0.1]
[1763567456190,0.71,135.11,135.08,0.1]
[1763567456395,17.18966919,135.12,135.08,0.1]
[1763567456396,0.71,135.1,135.08,0.1]
[1763567456842,7.05883507,135.1,135.08,0.1]
[1763567457326,9.78882769,135.13,135.08,0.1]
[1763567457527,6.34883507,135.12,135.08,0.1]
[1763567457821,9.78882769,135.09,135.06,0.1]
[1763567458002,11.58882769,135.09,135.06,0.1]
[1763567458199,0.71,135.12,135.06,0.78]
[1763567458397,0.71,135.11,135.06,7.12883507]
[1763567458624,9.78882769,135.1,135.06,7.12883507]
[1763567458798,0.71,135.11,135.07,9.72615378]
[1763567458998,0.71,135.11,135.08,9.72615378]
[1763567459198,0.71,135.15,135.1,9.72615378]
[1763567459421,10.49882769,135.14,135.07,0.68]
[1763567459640,9.78882769,135.12,135.08,9.72615378]
[1763567459921,9.78882769,135.1,135.06,0.1]
[1763567460107,19.51498147,135.1,135.06,0.1]
[1763567460308,19.51498147,135.07,135.06,0.1]
[1763567460508,24.72585169,135.07,135.06,0.1]
[1763567460707,25.43523978,135.07,135.06,0.1]
[1763567460914,9.78882769,135.06,135.03,0.1]
[1763567461114,18.12096,135.01,135.0,12.0]
[1763567461315,10.49882769,135.01,135.0,12.0]
[1763567461500,4.67949424,135.06,135.0,12.0]
[1763567461852,0.71,135.09,135.01,0.68]
[1763567461996,0.71,135.09,135.05,9.72615378]
[1763567462305,9.78882769,135.06,135.01,0.68]
[1763567462495,9.78882769,135.08,135.01,0.68]
[1763567462698,9.78882769,135.08,135.03,9.72615378]
[1763567463112,14.47459545,135.08,135.03,9.72615378]
[1763567463314,15.18459545,135.08,135.04,9.72615378]
[1763567463521,10.49882769,135.08,135.03,10.40615378]
[1763567463737,9.72615378,135.1,135.04,10.40615378]
[1763567463936,9.78882769,135.1,135.06,9.72615378]
[1763567464240,10.49882769,135.1,135.05,10.40615378]
[1763567464733,10.43615378,135.16,135.09,9.72615378]
[1763567464934,0.71,135.16,135.1,9.72615378]
[1763567465309,9.72615378,135.14,135.09,9.72615378]
[1763567465514,9.72615378,135.12,135.06,12.20615378]
[1763567465718,9.72615378,135.11,135.06,0.68]
[1763567466135,9.72615378,135.1,135.06,0.68]
[1763567466319,10.43615378,135.1,135.04,9.72615378]
[1763567466726,10.43615378,135.1,135.04,10.40615378]
[1763567466921,6.48887723,135.11,135.05,0.68]
[1763567467127,1.8,135.11,135.06,9.72615378]
[1763567467310,1.8,135.11,135.08,9.72615378]
[1763567467516,19.51498147,135.14,135.08,9.72615378]
[1763567467735,9.72615378,135.13,135.07,10.40615378]
[1763567467941,5.8982414,135.17,135.11,18.12096]
[1763567468124,0.71,135.2,135.16,9.72615378]
[1763567468125,5.39860236,135.2,135.16,9.72615378]
[1763567468326,6.48860236,135.23,135.17,9.72615378]
[1763567468530,20.33650506,135.22,135.16,9.72615378]
[1763567468833,5.8982414,135.24,135.16,9.72615378]
[1763567468834,4.68860236,135.21,135.2,18.12096]
[1763567469047,16.33439518,135.24,135.2,18.12096]
[1763567469048,4.68860236,135.23,135.2,18.12096]
[1763567469352,4.68860236,135.25,135.22,9.72615378]
[1763567469522,0.2,135.28,135.24,9.72615378]
[1763567469724,0.2,135.28,135.26,9.72615378]
[1763567469925,0.2,135.28,135.25,9.72615378]
[1763567470148,0.2,135.28,135.27,9.72615378]
[1763567470516,0.2,135.28,135.22,18.80096]
[1763567470725,9.72615378,135.25,135.2,27.84711378]
[1763567470941,14.41475614,135.26,135.2,27.84711378]
[1763567471150,4.68860236,135.26,135.21,9.72615378]
[1763567471330,4.68860236,135.26,135.22,9.72615378]
[1763567471537,0.71,135.27,135.23,9.72615378]
[1763567471861,14.61475614,135.28,135.23,9.72615378]
[1763567472152,15.32475614,135.28,135.23,10.40615378]
[1763567472356,5.20951746,135.27,135.23,10.40615378]
[1763567473145,9.72615378,135.25,135.2,28.52711378]
[1763567473348,5.20951746,135.24,135.19,9.72615378]
[1763567473550,5.20951746,135.24,135.2,9.72615378]
[1763567473726,14.93567124,135.24,135.19,9.72615378]
[1763567473922,14.93567124,135.24,135.08,11.72615377]
[1763567473923,9.72615378,135.21,135.08,11.72615377]
[1763567474232,20.33487911,135.2,135.15,9.72615378]
[1763567474436,9.89872533,135.19,135.14,9.72615378]
[1763567474623,5.21012297,135.18,135.14,9.72615378]
[1763567474823,5.2109393,135.17,135.13,10.40615378]
[1763567475030,15.18743005,135.2,135.15,9.72615378]
[1763567475333,15.18743005,135.2,135.14,10.40615378]
[1763567475334,19.62771439,135.19,135.14,10.40615378]
[1763567475539,5.21295825,135.18,135.14,10.40615378]
[1763567476258,5.21295825,135.18,135.15,9.72615378]
[1763567476423,5.21295825,135.18,135.15,10.40615378]
[1763567476624,21.81124562,135.2,135.15,0.68]
[1763567476844,9.72615378,135.18,135.13,10.40615378]
[1763567477051,10.43615378,135.18,135.13,10.40615378]
[1763567477647,10.43615378,135.18,135.08,9.72615378]
[1763567477648,6.48860236,135.19,135.14,10.40615378]
[1763567477863,1.8,135.19,135.16,9.72615378]
[1763567478039,1.8,135.19,135.15,9.72615378]
[1763567478246,1.8,135.19,135.15,0.68]
[1763567478443,4.68860236,135.21,135.16,10.40615378]
[1763567478638,4.68860236,135.21,135.18,9.72615378]
[1763567478955,7.19860236,135.22,135.18,9.72615378]
[1763567479158,5.92824912,135.21,135.17,9.72615378]
[1763567479661,10.61685148,135.21,135.17,9.72615378]
[1763567479841,5.39860236,135.21,135.15,0.68]
[1763567480042,5.22131924,135.2,135.18,9.72615378]
[1763567480247,5.39860236,135.21,135.18,9.72615378]
[1763567480546,5.39860236,135.21,135.17,9.72615378]
[1763567480742,5.22349638,135.2,135.17,9.72615378]
[1763567480948,5.39860236,135.21,135.18,9.72615378]
[1763567481138,5.22447781,135.2,135.15,0.68]
[1763567481357,0.71,135.21,135.18,9.72615378]
[1763567481554,5.22483083,135.21,135.19,9.72615378]
[1763567481755,5.22483083,135.21,135.18,9.72615378]
[1763567482363,6.48860236,135.22,135.19,9.72615378]
[1763567482558,24.30908408,135.24,135.2,9.72615378]
[1763567482762,9.78882769,135.2,135.11,0.65]
[1763567482945,9.72615378,135.17,135.11,0.65]
[1763567483144,9.72615378,135.15,135.08,0.65]
[1763567483348,14.94977107,135.14,135.09,9.72615378]
[1763567483663,5.92361729,135.13,135.09,9.72615378]
[1763567484263,5.92361729,135.13,135.05,0.65]
[1763567484264,10.42615378,135.12,135.05,0.65]
[1763567484563,9.72615378,135.09,135.03,18.12096]
[1763567484749,5.89361729,135.08,135.03,9.72615378]
[1763567484936,12.19615378,135.08,135.03,9.72615378]
[1763567485138,0.67,135.07,135.03,9.72615378]
[1763567485338,9.72615378,135.06,135.0,12.0]
[1763567485557,9.72615378,135.03,135.0,12.0]
[1763567485782,9.72615378,135.01,135.0,12.0]
[1763567485987,22.40631432,135.01,135.0,10.7]
[1763567486266,27.09427791,135.01,135.0,10.7]
[1763567486447,36.82043169,135.01,135.0,10.7]
[1763567486984,9.78882769,135.0,134.92,0.66]
[1763567487187,9.72615378,134.95,134.89,0.76]
[1763567487476,9.72615378,134.9,134.89,0.1]
[1763567487838,26.50626822,134.9,134.89,0.1]
[1763567488035,38.59001689,134.9,134.89,0.1]
[1763567488238,11.66213698,134.9,134.89,0.1]
[1763567488438,6.99128675,134.9,134.89,0.1]
[1763567488662,11.52615378,134.9,134.89,0.1]
[1763567488857,16.70138405,134.9,134.89,0.1]
[1763567489063,1.8,134.96,134.89,10.48615378]
[1763567489239,9.78882769,134.92,134.89,0.1]
[1763567489554,5.16517049,134.91,134.89,0.1]
[1763567489862,9.72615378,134.91,134.89,0.1]
[1763567490068,1.8,134.92,134.89,0.76]
[1763567490251,19.51498147,134.9,134.89,0.1]
[1763567490570,29.3281281,134.9,134.88,0.36144]
[1763567490862,21.40197432,134.89,134.88,0.36144]
[1763567491364,39.52293432,134.89,134.88,0.36144]
[1763567491567,49.2490881,134.89,134.88,0.36144]
[1763567491742,39.52293432,134.89,134.88,0.36144]
[1763567492062,46.93638231,134.89,134.88,0.36144]
[1763567492271,56.66253609,134.89,134.88,0.36144]
[1763567492458,49.2490881,134.89,134.88,0.36144]
[1763567492960,56.66253609,134.89,134.88,0.36144]
[1763567493171,14.95288293,134.89,134.88,0.36144]
[1763567493373,1.8,134.93,134.88,1.02144]
[1763567493587,14.85974396,134.92,134.88,0.36144]
[1763567493871,9.78882769,134.9,134.88,0.36144]
[1763567494057,1.8,134.89,134.88,0.36144]
[1763567494456,11.52615378,134.89,134.88,0.36144]
[1763567494662,16.65467594,134.89,134.88,0.36144]
[1763567494858,6.92852216,134.89,134.88,0.36144]
[1763567495066,16.65467594,134.89,134.88,0.36144]
[1763567495271,51.97791162,134.89,134.88,0.36144]
[1763567495479,42.25175784,134.89,134.88,0.36144]
[1763567495689,51.97791162,134.89,134.88,0.36144]
[1763567495983,44.56446363,134.89,134.88,0.36144]
[1763567496278,51.97791162,134.89,134.88,0.36144]
[1763567496682,44.56446363,134.89,134.88,0.36144]
[1763567497062,51.97791162,134.89,134.88,0.36144]
[1763567497266,51.97791162,134.89,134.88,1e-08]
[1763567497465,27.90978769,134.87,134.86,0.1]
[1763567497660,24.64350363,134.87,134.86,0.1]
[1763567498176,22.26922328,134.87,134.86,0.1]
[1763567498383,32.05805097,134.87,134.86,0.1]
[1763567498677,32.98486938,134.87,134.86,0.1]
[1763567499053,32.98486938,134.87,134.86,1e-08]
[1763567499374,27.90978769,134.85,134.84,1e-08]
[1763567499575,45.4914195,134.85,134.84,1e-08]
[1763567500161,52.90706651,134.85,134.84,1e-08]
[1763567500351,43.18091273,134.85,134.84,1e-08]
[1763567500550,52.90706651,134.85,134.84,1e-08]
[1763567500761,64.52694142,134.85,134.84,1e-08]
[1763567500954,74.2530952,134.85,134.84,1e-08]
[1763567501983,76.25309519,134.85,134.84,1e-08]
[1763567502152,9.78882769,134.84,134.79,1.50304145]
[1763567502360,9.72615378,134.8,134.79,1.50304145]
[1763567502559,12.45345348,134.8,134.79,1.50304145]
[1763567502883,40.36324117,134.8,134.79,1.50304145]
[1763567503067,9.78882769,134.75,134.67,0.66]
[1763567503379,0.92750612,134.77,134.71,9.72615378]
[1763567503579,9.72615378,134.76,134.71,9.72615378]
[1763567503780,12.4536599,134.77,134.72,10.38615378]
[1763567504082,2.72750612,134.77,134.73,10.38615378]
[1763567504274,12.4536599,134.77,134.74,0.66]
[1763567504480,9.78882769,134.79,134.75,9.72615378]
[1763567504481,0.92736849,134.79,134.75,9.72615378]
[1763567504662,2.72723091,134.81,134.76,9.72615378]
[1763567504864,12.45338469,134.81,134.76,9.72615378]
[1763567505182,2.72723091,134.81,134.77,0.66]
[1763567505386,1.8,134.81,134.79,9.72615378]
[1763567505684,12.4531784,134.84,134.8,0.66]
[1763567506066,9.72615378,134.83,134.8,0.66]
[1763567506266,0.92716214,134.82,134.8,0.66]
[1763567506788,10.65331592,134.82,134.74,18.12096]
[1763567506989,10.65331592,134.82,134.77,0.66]
[1763567507180,0.92716214,134.82,134.77,0.66]
[1763567507379,2.72702462,134.84,134.8,9.72615378]
[1763567507557,0.92681841,134.87,134.83,9.72615378]
[1763567507913,7.41329773,134.9,134.83,9.72615378]
[1763567507914,1.8,134.88,134.83,9.72615378]
[1763567508199,23.51655555,134.89,134.84,0.66]
[1763567508200,0.92668099,134.89,134.84,0.66]
[1763567508381,10.6526974,134.91,134.86,9.72615378]
[1763567508560,9.72615378,134.88,134.84,0.66]
[1763567508761,9.72615378,134.85,134.8,0.66]
[1763567509010,0.92702462,134.84,134.8,10.38615378]
[1763567509172,9.72615378,134.86,134.81,9.72615378]
[1763567509367,0.92695587,134.85,134.82,0.66]
[1763567509874,10.65297219,134.87,134.82,10.38615378]
[1763567510065,10.65297219,134.87,134.83,0.65]
[1763567510661,0.92681841,134.87,134.83,10.37615378]
[1763567510982,0.92681841,134.87,134.84,9.72615378]
[1763567511194,0.9267497,134.88,134.84,10.37615378]
[1763567511385,0.9267497,134.88,134.85,0.65]
[1763567512183,10.65290348,134.88,134.85,0.65]
[1763567512890,0.9267497,134.88,134.85,0.65]
[1763567514269,0.9267497,134.88,134.85,10.37615378]
[1763567514468,10.65276608,134.9,134.85,10.37615378]
[1763567514696,0.9266123,134.9,134.86,10.37615378]
[1763567514881,2.72654362,134.91,134.89,9.72615378]
[1763567515075,1.8,134.91,134.89,0.65]
[1763567515398,1.8,134.91,134.81,18.12096]
[1763567515399,1.8,134.91,134.87,10.37615378]
[1763567515713,9.72615378,134.88,134.84,0.65]
[1763567515916,10.71543999,134.9,134.78,0.65]
[1763567515917,9.78882769,134.86,134.78,0.65]
[1763567516118,0.92695587,134.85,134.78,0.65]
[1763567516414,9.72615378,134.84,134.8,9.72615378]
[1763567516590,0.92709337,134.83,134.81,0.65]
[1763567517480,0.92709337,134.83,134.79,9.72615378]
[1763567517992,0.92716214,134.82,134.78,9.72615378]
[1763567518185,2.72709337,134.83,134.8,10.37615378]
[1763567518378,2.72709337,134.83,134.71,0.74]
[1763567518379,0.92716214,134.82,134.78,9.72615378]
[1763567518587,0.92716214,134.82,134.76,0.65]
[1763567519096,1.8,134.83,134.79,9.72615378]
[1763567519433,1.8,134.83,134.8,9.72615378]
[1763567519782,1.8,134.83,134.81,0.65]
[1763567519982,5.09451178,134.82,134.81,0.65]
[1763567520185,5.09451178,134.82,134.81,10.37615378]
[1763567520394,5.09451178,134.82,134.71,0.74]
[1763567520395,14.82066556,134.82,134.71,0.74]
[1763567520684,10.14398364,134.83,134.73,9.72615378]
[1763567520685,17.14576567,134.78,134.73,9.72615378]
[1763567520886,6.38125182,134.77,134.72,7.03125182]
[1763567521105,9.21914041,134.79,134.72,0.65]
[1763567521106,6.38125182,134.75,134.72,0.65]
[1763567521308,9.78882769,134.78,134.72,0.65]
[1763567521495,6.38125182,134.75,134.7,7.13125182]
[1763567521700,11.4774481,134.74,134.7,0.1]
[1763567521905,6.38125182,134.74,134.7,0.75]
[1763567522210,1.8,134.75,134.7,0.1]
[1763567522402,6.38125182,134.73,134.7,0.1]
[1763567522602,1.8,134.75,134.7,0.75]
[1763567522808,5.10071438,134.74,134.7,7.13125182]
[1763567523029,6.38125182,134.74,134.7,0.75]
[1763567523315,9.22118588,134.75,134.7,0.75]
[1763567523316,5.1081238,134.73,134.7,0.75]
[1763567523526,8.18125182,134.75,134.7,0.75]
[1763567523828,6.38125182,134.74,134.7,0.75]
[1763567524324,5.1082808,134.73,134.7,0.75]
[1763567524500,1.8,134.79,134.72,6.38125182]
[1763567524685,5.11646283,134.78,134.73,0.65]
[1763567524892,5.11646283,134.78,134.74,6.38125182]
[1763567525091,8.18125182,134.79,134.73,0.65]
[1763567525092,11.49771465,134.77,134.73,0.65]
[1763567525311,5.11646283,134.76,134.73,0.65]
[1763567525719,11.49771465,134.75,134.71,0.65]
[1763567526028,5.11646283,134.74,134.72,0.65]
[1763567526227,11.49771465,134.73,134.7,0.75]
[1763567526388,6.38125182,134.71,134.7,0.1]
[1763567526727,11.49771465,134.71,134.7,0.1]
[1763567526895,6.38125182,134.7,134.68,0.65]
[1763567527093,5.11646283,134.69,134.68,0.65]
[1763567527307,5.11646283,134.69,134.59,1.8]
[1763567527627,5.11646283,134.68,134.6,18.77096]
[1763567527919,5.11646283,134.67,134.63,6.38125182]
[1763567528101,5.11646283,134.66,134.64,7.03125182]
[1763567528299,5.11646283,134.65,134.63,6.38125182]
[1763567528510,4.6479621,134.72,134.64,6.38125182]
[1763567528830,11.54627632,134.71,134.63,18.12096]
[1763567529116,5.1650245,134.7,134.65,6.38125182]
[1763567529428,5.1650245,134.69,134.68,6.38125182]
[1763567529836,1.8,134.74,134.68,0.65]
[1763567530038,0.92750612,134.77,134.73,6.38125182]
[1763567530327,6.38125182,134.76,134.71,6.38125182]
[1763567530621,0.92750612,134.77,134.72,6.38125182]
[1763567530798,7.30875794,134.77,134.72,6.38125182]
[1763567530996,0.92750612,134.77,134.73,0.65]
[1763567531225,6.38125182,134.74,134.68,0.65]
[1763567531415,12.25136882,134.75,134.68,0.65]
[1763567531596,7.30896445,134.74,134.69,6.38125182]
[1763567531791,11.13136882,134.76,134.69,18.12096]
[1763567531792,4.65515352,134.76,134.69,18.12096]
[1763567532021,4.65515352,134.79,134.75,6.38125182]
[1763567532227,10.45136882,134.8,134.76,6.38125182]
[1763567532428,4.65515352,134.8,134.78,6.38125182]
[1763567532806,4.65515352,134.8,134.78,0.65]
[1763567533008,4.65515352,134.8,134.76,0.65]
[1763567533210,13.68086024,134.8,134.74,0.65]
[1763567533421,4.65515352,134.79,134.74,7.03125182]
[1763567533621,5.58245322,134.8,134.76,6.38125182]
[1763567533935,1.60736849,134.79,134.58,1.99999999]
[1763567534141,5.7962153,134.72,134.59,0.65]
[1763567534299,4.65515352,134.75,134.71,6.38125182]
[1763567534497,11.96391146,134.77,134.72,0.65]
[1763567534906,4.65515352,134.78,134.72,7.03125182]
[1763567535133,7.42245322,134.8,134.74,6.38125182]
[1763567535425,7.42245322,134.8,134.73,0.65]
[1763567535426,11.03640534,134.79,134.73,0.65]
[1763567535996,6.38125182,134.75,134.7,0.65]
[1763567536201,14.44398121,134.77,134.7,0.65]
[1763567536418,11.37894376,134.76,134.7,0.65]
[1763567536635,4.65515352,134.75,134.7,0.65]
[1763567536839,0.92757494,134.76,134.7,0.65]
[1763567537198,6.38125182,134.76,134.7,0.65]
[1763567537422,6.38125182,134.74,134.7,0.65]
[1763567537811,0.92757494,134.76,134.7,0.65]
[1763567538009,12.0748558,134.78,134.7,0.65]
[1763567538214,6.38125182,134.76,134.7,0.65]
[1763567538408,4.65515352,134.78,134.7,0.65]
[1763567538409,4.65515352,134.78,134.72,18.12096]
[1763567538609,10.45136882,134.81,134.74,6.38125182]
[1763567538829,10.45136882,134.81,134.73,0.65]
[1763567538830,5.33515352,134.81,134.73,0.65]
[1763567539020,28.22874803,134.8,134.72,0.65]
[1763567539327,6.38125182,134.76,134.72,0.65]
[1763567539525,6.38125182,134.75,134.72,0.65]
[1763567540312,6.38125182,134.74,134.72,0.65]
[1763567541012,5.58259082,134.78,134.68,18.12096]
[1763567541218,6.38125182,134.75,134.73,0.67]
[1763567541965,0.9274373,134.78,134.73,0.67]
[1763567542230,6.38125182,134.77,134.73,0.67]
[1763567542428,6.38125182,134.75,134.68,18.12096]
[1763567542634,6.38125182,134.74,134.69,0.67]
[1763567543146,6.38125182,134.76,134.69,0.67]
[1763567543308,6.38125182,134.73,134.69,0.67]
[1763567543816,8.34696334,134.78,134.69,7.05125182]
[1763567544019,6.38125182,134.76,134.7,0.67]
[1763567544217,8.34696334,134.78,134.7,0.67]
[1763567544424,6.38125182,134.76,134.7,0.67]
[1763567545233,7.30868912,134.78,134.71,6.38125182]
[1763567545417,7.30848273,134.81,134.73,6.38125182]
[1763567545620,7.30848273,134.81,134.74,7.07125182]
[1763567545831,6.38125182,134.81,134.74,7.07125182]
[1763567546031,0.92709337,134.83,134.75,0.69]
[1763567546341,6.38125182,134.81,134.75,0.69]
[1763567546515,0.9272997,134.8,134.75,0.69]
[1763567546709,6.38125182,134.78,134.75,0.69]
[1763567547336,6.38125182,134.8,134.75,0.69]
[1763567547538,6.38125182,134.79,134.75,0.69]
[1763567547840,6.38125182,134.78,134.75,0.69]
[1763567548040,0.67,134.8,134.7,19.96096]
[1763567548041,6.38125182,134.77,134.73,0.69]
[1763567548539,7.30862031,134.79,134.73,0.69]
[1763567548918,6.38125182,134.77,134.71,0.69]
[1763567549146,6.38125182,134.78,134.72,0.69]
[1763567550138,0.9272997,134.8,134.74,6.38125182]
[1763567550455,7.30848273,134.81,134.74,6.38125182]
[1763567550744,6.38125182,134.79,134.74,0.69]
[1763567550948,7.30855152,134.8,134.73,6.38125182]
[1763567551119,7.30855152,134.8,134.75,0.69]
[1763567551529,14.72700612,134.8,134.75,0.69]
[1763567551966,14.72651979,134.81,134.75,0.69]
[1763567552454,6.38125182,134.82,134.75,7.07125182]
[1763567552658,7.30820769,134.85,134.78,6.38125182]
[1763567552834,7.30800152,134.88,134.81,6.38125182]
[1763567553251,7.30800152,134.88,134.82,7.07125182]
[1763567553252,0.9267497,134.88,134.82,7.07125182]
[1763567553453,0.2,134.91,134.84,6.38125182]
[1763567553653,0.2,134.91,134.86,6.38125182]
[1763567553865,0.2,134.91,134.87,6.38125182]
[1763567554258,0.2,134.91,134.88,0.69]
[1763567554456,0.2,134.91,134.9,6.38125182]
[1763567554749,0.2,134.91,134.88,0.69]
[1763567554949,0.2,134.91,134.89,6.38125182]
[1763567555351,0.2,134.91,134.9,0.69]
[1763567555551,0.2,134.91,134.87,7.07125182]
[1763567555764,0.87,134.91,134.84,18.12096]
[1763567555953,0.87,134.91,134.84,0.69]
[1763567555954,6.38125182,134.89,134.84,0.69]
[1763567556153,7.30786412,134.9,134.83,6.38125182]
[1763567556358,7.30786412,134.9,134.84,0.19]
[1763567556554,6.38125182,134.89,134.84,0.19]
[1763567556758,6.38125182,134.88,134.84,0.19]
[1763567557182,6.38125182,134.89,134.84,0.19]
[1763567557346,6.38125182,134.88,134.84,0.19]
[1763567557548,6.38125182,134.89,134.84,0.19]
[1763567557973,0.9266123,134.9,134.81,1.84]
[1763567558150,8.33951353,134.9,134.82,6.38125182]
[1763567558345,6.38125182,134.89,134.82,7.07125182]
[1763567558549,1.5966123,134.9,134.83,7.07125182]
[1763567558756,6.38125182,134.89,134.83,7.07125182]
[1763567558954,6.38125182,134.89,134.83,0.69]
[1763567559153,1.5966123,134.9,134.83,6.38125182]
[1763567559449,0.9266123,134.9,134.84,7.07125182]
[1763567559752,6.58125182,134.91,134.85,6.38125182]